fUST/lending_fUST_20250616
["ID","MTS","AMOUNT","RATE_DAILY","PERIOD"]
[366079129,1750053032377,-463.59682233,0.00021917,4]
[366079130,1750053032386,-470.18054093,0.00021917,4]
[366079131,1750053032396,-402.08904243,0.00021917,4]
[366079132,1750053032405,-460.0,0.00021917,2]
[366079133,1750053032415,-462.3376833,0.00021917,4]
[366079134,1750053032425,-474.67136591,0.00021917,4]
[366079135,1750053032435,-427.30633724,0.00021917,4]
[366079136,1750053032445,-460.0,0.00021917,4]
[366079138,1750053032455,-413.84771156,0.00021917,4]
[366079139,1750053032465,-519.98328039,0.00021917,4]
[366079140,1750053032475,-465.04611877,0.00021917,4]
[366079141,1750053032485,-460.0,0.00021917,4]
[366079142,1750053032494,-466.0344899,0.00021917,4]
[366079143,1750053032504,-474.01373958,0.00021917,4]
[366079144,1750053032514,-477.38945454,0.00021917,4]
[366079145,1750053032524,-458.31317039,0.00021917,4]
[366079146,1750053032534,-463.72314005,0.00021917,4]
[366079147,1750053032543,-460.0,0.00021917,4]
[366079148,1750053032554,-460.0,0.00021917,4]
[366079149,1750053032564,-460.44658949,0.00021917,4]
[366079150,1750053032573,-460.0,0.00021917,4]
[366079151,1750053032583,-420.0,0.00021917,4]
[366079152,1750053032592,-460.0,0.00021917,4]
[366079153,1750053032602,-460.0,0.00021917,4]
[366079154,1750053032611,-460.0,0.00021917,4]
[366079155,1750053032622,-503.62,0.00021917,4]
[366079156,1750053032632,-460.0,0.00021917,4]
[366079157,1750053032642,-478.55629273,0.00021917,4]
[366079158,1750053032652,-460.0,0.00021917,4]
[366079159,1750053032661,-460.0,0.00021917,4]
[366079160,1750053032670,-460.0,0.00021917,4]
[366079161,1750053032680,-460.0,0.00021917,4]
[366079162,1750053032690,-460.0,0.00021917,4]
[366079163,1750053032701,-460.0,0.00021917,4]
[366079164,1750053032710,-493.17144947,0.00021917,4]
[366079165,1750053032721,-485.15065747,0.00021917,4]
[366079166,1750053032732,-468.85015782,0.00021917,4]
[366079167,1750053032746,-497.15823727,0.00021917,4]
[366079168,1750053032755,-390.0,0.00021917,4]
[366079169,1750053032766,-460.0,0.00021917,4]
[366079170,1750053032775,-470.77491444,0.00021917,4]
[366079171,1750053032789,-470.98919097,0.00021917,4]
[366079172,1750053032799,-460.0,0.00021917,4]
[366079173,1750053032811,-405.80266538,0.00021917,4]
[366079174,1750053032822,-280.67867808,0.00021917,4]
[366079175,1750053032832,-460.0,0.00021917,4]
[366079176,1750053032843,-468.42871188,0.00021917,4]
[366079177,1750053032853,-460.0,0.00021917,4]
[366079178,1750053032863,-460.0,0.00021917,4]
[366079179,1750053032872,-432.55320027,0.00021917,4]
[366079180,1750053032882,-460.0,0.00021917,4]
[366079181,1750053032892,-460.0,0.00021917,4]
[366079182,1750053032901,-460.0,0.00021917,4]
[366079183,1750053032911,-460.0,0.00021917,4]
[366079184,1750053032920,-460.0,0.00021917,4]
[366079185,1750053032930,-185.30264706,0.00021917,4]
[366079186,1750053032940,-460.0,0.00021917,4]
[366079187,1750053032950,-472.08682873,0.00021917,4]
[366079188,1750053032959,-399.52322955,0.00021917,4]
[366079189,1750053032969,-460.0,0.00021917,4]
[366079190,1750053032978,-460.0,0.00021917,4]
[366079191,1750053032988,-470.79891649,0.00021917,4]
[366079192,1750053032998,-460.0,0.00021917,4]
[366079193,1750053033007,-491.83606449,0.00021917,4]
[366079194,1750053033019,-460.0,0.00021917,4]
[366079195,1750053033030,-474.64772289,0.00021917,4]
[366079196,1750053033040,-460.0,0.00021917,4]
[366079197,1750053033050,-460.0,0.00021917,4]
[366079198,1750053033060,-460.0,0.00021917,4]
[366079199,1750053033069,-460.0,0.00021917,4]
[366079200,1750053033080,-460.0,0.00021917,4]
[366079201,1750053033094,-460.0,0.00021917,4]
[366079202,1750053033104,-469.81546554,0.00021917,4]
[366079203,1750053033114,-479.55175902,0.00021917,4]
[366079204,1750053033124,-500.52688949,0.00021917,4]
[366079205,1750053033134,-155.0,0.00021917,2]
[366079206,1750053033144,-460.0,0.00021917,4]
[366079207,1750053033154,-460.0,0.00021917,4]
[366079208,1750053033164,-500.0,0.00021984,2]
[366079209,1750053033174,-500.0,0.00022088,2]
[366079210,1750053033184,-500.0,0.00022088,2]
[366079211,1750053033194,-504.09730674,0.000221,2]
[366079212,1750053033204,-500.0,0.000221,2]
[366079213,1750053033215,-570.73739508,0.00022106,2]
[366079214,1750053033226,-257.75773486,0.00022139,2]
[366079215,1750053033236,-545.12675193,0.00022139,2]
[366079216,1750053033246,-460.0,0.00022191,4]
[366079217,1750053033256,-460.0,0.00022191,2]
[366079218,1750053033266,-355.2798638,0.00022191,4]
[366079219,1750053033276,-460.0,0.00022191,4]
[366079220,1750053033286,-460.0,0.00022191,4]
[366079221,1750053033296,-438.9,0.00022191,4]
[366079222,1750053033306,-460.0,0.00022191,4]
[366079223,1750053033316,-503.62,0.00022191,4]
[366079224,1750053033326,-460.0,0.00022191,4]
[366079225,1750053033335,-460.0,0.00022191,4]
[366079226,1750053033344,-505.94570726,0.00022191,4]
[366079227,1750053033355,-460.0,0.00022191,4]
[366079228,1750053033365,-460.0,0.00022191,4]
[366079229,1750053033375,-200.59963243,0.00022191,4]
[366079230,1750053033385,-460.0,0.00022191,4]
[366079231,1750053033395,-460.0,0.00022191,4]
[366079232,1750053033405,-460.0,0.00022191,4]
[366079233,1750053033415,-460.0,0.00022191,4]
[366079234,1750053033427,-460.0,0.00022191,4]
[366079235,1750053033437,-460.0,0.00022191,4]
[366079236,1750053033446,-460.0,0.00022191,4]
[366079237,1750053033457,-460.0,0.00022191,4]
[366079238,1750053033467,-474.92,0.00022191,4]
[366079239,1750053033477,-460.0,0.00022191,4]
[366079240,1750053033487,-634.86,0.000222,7]
[366079241,1750053033497,-500.0,0.00022206,2]
[366079242,1750053033508,-501.180375,0.00022214,2]
[366079243,1750053033519,-191.0,0.00022219,2]
[366079244,1750053033530,-232.2017909,0.00022257,2]
[366079245,1750053033541,-1095.0,0.00022257,2]
[366079246,1750053033551,-500.0,0.00022293,2]
[366079247,1750053033561,-502.45442288,0.00022293,2]
[366079248,1750053033571,-602.99962067,0.00022293,2]
[366079249,1750053033580,-592.20755933,0.00022293,2]
[366079250,1750053033590,-251.35364492,0.00022293,2]
[366079251,1750053033600,-500.66384144,0.00022293,2]
[366079252,1750053033610,-500.0,0.00022319,2]
[366079253,1750053033619,-367.52129474,0.00022413,2]
[366079254,1750053033630,-191.0,0.0002245,2]
[366079255,1750053033640,-460.0,0.00022465,4]
[366079256,1750053033651,-460.0,0.00022465,2]
[366079257,1750053033661,-460.0,0.00022465,4]
[366079258,1750053033671,-460.0,0.00022465,4]
[366079259,1750053033681,-460.0,0.00022465,4]
[366079260,1750053033692,-503.62,0.00022465,4]
[366079261,1750053033702,-460.0,0.00022465,4]
[366079262,1750053033712,-460.0,0.00022465,4]
[366079263,1750053033722,-460.0,0.00022465,4]
[366079264,1750053033731,-460.0,0.00022465,4]
[366079265,1750053033743,-460.0,0.00022465,4]
[366079266,1750053033753,-460.0,0.00022465,4]
[366079267,1750053033764,-460.0,0.00022465,4]
[366079268,1750053033774,-257.96,0.00022465,4]
[366079269,1750053033785,-460.0,0.00022465,4]
[366079270,1750053033796,-460.0,0.00022465,4]
[366079271,1750053033805,-460.0,0.00022465,4]
[366079272,1750053033815,-526.21598456,0.00022532,2]
[366079273,1750053033825,-1095.0,0.00022551,2]
[366079274,1750053033835,-420.0,0.00022561,2]
[366079275,1750053033845,-1095.0,0.00022586,2]
[366079276,1750053033855,-1003.99013325,0.00022648,2]
[366079277,1750053033866,-232.2017909,0.00022697,2]
[366079278,1750053033876,-460.0,0.00022739,4]
[366079279,1750053033887,-460.0,0.00022739,2]
[366079280,1750053033897,-460.0,0.00022739,4]
[366079281,1750053033907,-460.0,0.00022739,4]
[366079282,1750053033917,-503.62,0.00022739,4]
[366079283,1750053033927,-460.0,0.00022739,4]
[366079284,1750053033937,-460.0,0.00022739,4]
[366079285,1750053033946,-460.0,0.00022739,4]
[366079286,1750053033956,-460.0,0.00022739,4]
[366079287,1750053033967,-477.73,0.00022739,4]
[366079288,1750053033977,-460.0,0.00022739,4]
[366079289,1750053033988,-460.0,0.00022739,4]
[366079290,1750053033998,-168.0,0.00022751,2]
[366079291,1750053034008,-500.0,0.00022754,2]
[366079292,1750053034018,-1095.0,0.00022852,2]
[366079293,1750053034028,-1095.0,0.0002286,2]
[366079294,1750053034038,-701.75885284,0.00022882,2]
[366079295,1750053034048,-1095.0,0.00022898,2]
[366079296,1750053034057,-244.34315868,0.00022911,2]
[366079297,1750053034067,-207.4,0.00022982,2]
[366079298,1750053034078,-1435.61248886,0.00022982,2]
[366079299,1750053034097,-500.0,0.00021916,2]
[366079300,1750053034107,-2728.90350681,0.00022982,2]
[366079301,1750053034120,-835.48400433,0.00022982,2]
[366079302,1750053034130,-500.0,0.00022982,2]
[366079303,1750053034141,-500.0,0.00022982,2]
[366079304,1750053034151,-500.0,0.00022982,2]
[366079305,1750053034161,-500.0,0.00022982,2]
[366079306,1750053034171,-533.47031743,0.00022982,2]
[366079307,1750053034182,-11075.09230094,0.00022982,2]
[366079308,1750053034192,-166.72,0.0002299,3]
[366079309,1750053034202,-500.16,0.0002299,3]
[366079310,1750053034212,-389.02,0.0002299,3]
[366079311,1750053034223,-194.51,0.0002299,3]
[366079312,1750053034233,-583.55,0.0002299,3]
[366079313,1750053034243,-12100.15525591,0.00023,2]
[366079314,1750053034253,-3029.82670335,0.00023,2]
[366079315,1750053034263,-1329.94702402,0.00023,2]
[366079316,1750053034274,-500.0,0.00023,2]
[366079317,1750053034284,-2819.27020833,0.00023013,2]
[366079318,1750053034295,-2005.98724528,0.00023013,2]
[366079319,1750053034305,-460.0,0.00023013,4]
[366079320,1750053034315,-460.0,0.00023013,2]
[366079321,1750053034326,-460.0,0.00023013,4]
[366079322,1750053034335,-503.62,0.00023013,4]
[366079323,1750053034345,-460.0,0.00023013,4]
[366079324,1750053034355,-460.0,0.00023013,4]
[366079325,1750053034365,-412.84,0.00023013,4]
[366079326,1750053034375,-460.0,0.00023013,4]
[366079327,1750053034385,-460.0,0.00023013,4]
[366079328,1750053034395,-2266.2,0.00023097,2]
[366079329,1750053034405,-335.0,0.00023136,2]
[366079330,1750053034416,-232.2017909,0.00023137,2]
[366079331,1750053034427,-335.0,0.00023229,2]
[366079332,1750053034438,-160.0,0.00023286,2]
[366079333,1750053034448,-460.0,0.00023287,4]
[366079334,1750053034458,-460.0,0.00023287,2]
[366079335,1750053034467,-460.0,0.00023287,4]
[366079336,1750053034477,-503.62,0.00023287,4]
[366079337,1750053034487,-335.0,0.00023328,2]
[366079338,1750053034496,-701.75885281,0.00023357,2]
[366079339,1750053034506,-500.0,0.0002345,2]
[366079340,1750053034516,-460.0,0.00023561,4]
[366079341,1750053034526,-460.0,0.00023561,2]
[366079342,1750053034538,-460.0,0.00023561,4]
[366079343,1750053034548,-503.62,0.00023561,4]
[366079344,1750053034558,-172.178682,0.00023561,7]
[366079345,1750053034568,-151.0,0.00023561,7]
[366079346,1750053034577,-232.2017909,0.00023578,2]
[366079347,1750053034587,-600.0,0.00023656,2]
[366079348,1750053034596,-258.10578667,0.000238,7]
[366079349,1750053034609,-376.75421333,0.000238,7]
[366079350,1750053034618,-701.75885281,0.00023832,2]
[366079351,1750053034628,-402.12025937,0.00023835,4]
[366079352,1750053034638,-460.0,0.00023835,2]
[366079353,1750053034647,-460.0,0.00023835,4]
[366079354,1750053034657,-503.62,0.00023835,4]
[366079355,1750053034667,-150.0,0.000239,2]
[366079356,1750053034676,-964.0,0.0002391,2]
[366079357,1750053034687,-653.0,0.0002391,2]
[366079358,1750053034696,-152.636,0.0002391,2]
[366079359,1750053034706,-426.76,0.00024,2]
[366079360,1750053034715,-10016.67064975,0.00024,2]
[366079361,1750053034725,-5361.73853788,0.00024,7]
[366079362,1750053034735,-151.0,0.00024,7]
[366079363,1750053034748,-151.0,0.00024,7]
[366079364,1750053034758,-157.622914,0.00024,7]
[366079365,1750053034767,-151.0,0.00024,7]
[366079366,1750053034778,-276.104763,0.00024,7]
[366079367,1750053034789,-276.104763,0.00024,7]
[366079368,1750053034799,-151.0,0.00024,7]
[366079369,1750053034808,-151.0,0.00024,7]
[366079370,1750053034818,-151.0,0.00024,7]
[366079371,1750053034829,-151.0,0.00024,7]
[366079372,1750053034838,-151.0,0.00024,7]
[366079373,1750053034946,-151.0,0.00024,7]
[366079374,1750053034957,-152.33876,0.00024,7]
[366079375,1750053034966,-151.0,0.00024,7]
[366079376,1750053034976,-232.84003,0.00024,7]
[366079377,1750053034985,-151.0,0.00024,7]
[366079378,1750053034996,-192.537547,0.00024,7]
[366079379,1750053035006,-151.0,0.00024,7]
[366079380,1750053035015,-546.81788,0.00024,7]
[366079381,1750053035024,-546.81788,0.00024,7]
[366079382,1750053035035,-151.0,0.00024,7]
[366079383,1750053035045,-151.0,0.00024,7]
[366079384,1750053035054,-163.705718,0.00024,7]
[366079385,1750053035063,-163.705718,0.00024,7]
[366079386,1750053035073,-1742.798886,0.00024,2]
[366079387,1750053035082,-1742.798886,0.00024,2]
[366079388,1750053035091,-151.0,0.00024,7]
[366079389,1750053035101,-151.0,0.00024,7]
[366079390,1750053035110,-151.0,0.00024,7]
[366079391,1750053035119,-151.0,0.00024,7]
[366079392,1750053035129,-151.0,0.00024,7]
[366079393,1750053035138,-151.0,0.00024,7]
[366079394,1750053035148,-160.0,0.00024,7]
[366079395,1750053035157,-151.0,0.00024,7]
[366079396,1750053035166,-151.0,0.00024,7]
[366079397,1750053035176,-156.459393,0.00024,7]
[366079398,1750053035186,-153.908546,0.00024,7]
[366079399,1750053035196,-232.2017909,0.00024018,2]
[366079400,1750053035205,-460.0,0.00024109,2]
[366079401,1750053035215,-460.0,0.00024109,4]
[366079402,1750053035225,-503.62,0.00024109,4]
[366079403,1750053035235,-335.0,0.00024161,2]
[366079404,1750053035245,-1200.0,0.00024204,2]
[366079405,1750053035255,-701.75885281,0.00024307,2]
[366079406,1750053035265,-215.0738,0.00024351,2]
[366079407,1750053035274,-1000.32,0.0002436,3]
[366079408,1750053035284,-778.04,0.0002436,3]
[366079409,1750053035294,-389.02,0.0002436,3]
[366079410,1750053035303,-460.0,0.00024383,2]
[366079411,1750053035314,-460.0,0.00024383,4]
[366079412,1750053035324,-503.62,0.00024383,4]
[366079413,1750053035336,-232.2017909,0.00024458,2]
[366079414,1750053035348,-151.0,0.00024547,7]
[366079415,1750053035358,-420.0,0.00024548,2]
[366079416,1750053035368,-208.0,0.0002462,2]
[366079417,1750053035377,-160.0,0.00024656,2]
[366079418,1750053035387,-460.0,0.00024657,2]
[366079419,1750053035397,-460.0,0.00024657,4]
[366079420,1750053035407,-503.62,0.00024657,4]
[366079421,1750053035417,-151.0,0.000247,9]
[366079422,1750053035426,-1903.4642017,0.000247,2]
[366079423,1750053035436,-523.0,0.000247,2]
[366079424,1750053035446,-528.13,0.00024723,4]
[366079425,1750053035455,-1800.0,0.00024751,2]
[366079426,1750053035465,-151.82230529,0.00024768,2]
[366079427,1750053035475,-151.0,0.00024768,2]
[366079428,1750053035485,-500.0,0.00024773,2]
[366079429,1750053035495,-701.75885281,0.00024782,2]
[366079430,1750053035504,-335.0,0.0002479,7]
[366079431,1750053035514,-167.84765351,0.0002479,2]
[366079432,1750053035523,-17661.39,0.00024799,30]
[366079433,1750053035534,-151.0,0.00024799,7]
[366079434,1750053035543,-151.0,0.00024799,7]
[366079435,1750053035553,-151.0,0.00024799,7]
[366079436,1750053035563,-151.0,0.00024799,7]
[366079437,1750053035574,-151.0,0.00024799,7]
[366079438,1750053035585,-153.090444,0.00024799,7]
[366079439,1750053035594,-276.104763,0.00024799,7]
[366079440,1750053035604,-276.104763,0.00024799,7]
[366079441,1750053035614,-151.0,0.00024799,7]
[366079442,1750053035624,-182.3413227,0.00024799,7]
[366079443,1750053035633,-151.0,0.00024799,7]
[366079444,1750053035644,-151.0,0.00024799,7]
[366079445,1750053035653,-151.0,0.00024799,7]
[366079446,1750053035663,-151.0,0.00024799,7]
[366079447,1750053035672,-151.0,0.00024799,7]
[366079448,1750053035682,-151.0,0.00024799,7]
[366079449,1750053035691,-151.0,0.00024799,7]
[366079450,1750053035701,-546.81788,0.00024799,7]
[366079451,1750053035712,-546.81788,0.00024799,7]
[366079452,1750053035721,-151.0,0.00024799,7]
[366079453,1750053035731,-151.0,0.00024799,7]
[366079454,1750053035743,-163.705718,0.00024799,7]
[366079455,1750053035753,-163.705718,0.00024799,7]
[366079456,1750053035763,-1229.19936602,0.00024799,2]
[366079489,1750053037838,-268.6429048,0.00020888,2]
[366079492,1750053037850,-50.44846954,0.00020888,2]
[366079494,1750053037860,-500.0,0.00021916,2]
[366079496,1750053037870,-513.59951998,0.00024799,2]
[366079498,1750053037879,-1203.56989895,0.00024799,2]
[366079500,1750053037893,-539.22898705,0.00024799,2]
[366079502,1750053037902,-182.791101,0.00024799,7]
[366079504,1750053037912,-151.0,0.00024799,7]
[366079506,1750053037921,-1903.46420168,0.00024799,2]
[366079507,1750053037931,-151.0,0.00024799,7]
[366079508,1750053037941,-151.0,0.00024799,7]
[366079509,1750053037951,-151.0,0.00024799,7]
[366079510,1750053037961,-151.0,0.00024799,7]
[366079511,1750053037970,-206.539036,0.00024799,7]
[366079512,1750053037980,-151.0,0.00024799,7]
[366079513,1750053037990,-151.0,0.00024799,7]
[366079514,1750053038002,-81486.97667427,0.000248,2]
[366081017,1750053241292,5000.0,0.0002,2]
[366081019,1750053256649,1.90510865,0.0002,2]
[366081020,1750053256675,1192.93717312,0.0002,2]
[366081021,1750053265187,1000.0,0.00024,120]
[366081041,1750053340698,170.740815,0.00013699,2]
[366081048,1750053484318,154.80119396,0.00019948,2]
[366081062,1750053828000,154.80119394,0.00019949,2]
[366081066,1750053898216,6802.30545731,0.00019178,2]
[366081067,1750053898244,951.73514269,0.00019178,2]
[366081069,1750053993302,154.80119394,0.00019949,2]
[366081074,1750054027132,-300.0,0.00020045,2]
[366081075,1750054027154,-1200.0,0.00020045,2]
[366081076,1750054027175,-300.0,0.00020045,2]
[366081077,1750054027196,-300.0,0.00020045,2]
[366081078,1750054027217,-390.02507672,0.00020046,2]
[366081079,1750054027238,-500.0,0.00020046,2]
[366081080,1750054027260,-500.0,0.00020046,2]
[366081081,1750054027281,-279.76666585,0.00020046,2]
[366081082,1750054027303,-500.0,0.00020046,2]
[366081083,1750054027326,-500.0,0.00020046,2]
[366081084,1750054027349,-168.02507818,0.00020046,2]
[366081085,1750054027372,-500.0,0.00020046,2]
[366081086,1750054027394,-500.0,0.00020046,2]
[366081087,1750054027414,-500.0,0.00020046,2]
[366081088,1750054027435,-500.0,0.00020046,2]
[366081089,1750054027458,-503.36146181,0.00020046,2]
[366081090,1750054027481,-500.0,0.00020046,2]
[366081091,1750054027503,-500.0,0.00020046,2]
[366081092,1750054027524,-500.0,0.00020046,2]
[366081093,1750054027546,-500.0,0.00020046,2]
[366081094,1750054027567,-500.0,0.00020046,2]
[366081095,1750054027589,-500.0,0.00020046,2]
[366081096,1750054027611,-218.31359675,0.00020046,2]
[366081097,1750054027633,-500.0,0.00020046,2]
[366081098,1750054027654,-597.24043578,0.00020046,2]
[366081099,1750054027675,-500.0,0.00020046,2]
[366081100,1750054027700,-500.0,0.00020046,2]
[366081101,1750054027722,-500.0,0.00020046,2]
[366081102,1750054027743,-230.39512437,0.00020046,2]
[366081103,1750054027768,-582.14390568,0.00020046,2]
[366081104,1750054027792,-500.0,0.00020046,2]
[366081105,1750054027816,-500.0,0.00020046,2]
[366081106,1750054027840,-500.0,0.00020046,2]
[366081107,1750054027863,-1656.41804572,0.00020049,2]
[366081108,1750054028127,-426.92908672,0.00020049,2]
[366081110,1750054051077,-1846.54180229,0.00020049,2]
[366081111,1750054055505,1943.26775022,0.0002,2]
[366081112,1750054064982,160.0,0.00018,14]
[366081113,1750054165150,-300.0,0.00020048,2]
[366081114,1750054165178,-14859.56436537,0.00020049,2]
[366081142,1750054232117,-177.781,0.00020498,2]
[366081144,1750054232127,-160.0,0.00020876,2]
[366081146,1750054232136,-500.0,0.00021129,2]
[366081148,1750054232146,-1079.20210091,0.00021187,2]
[366081150,1750054232156,-708.40386815,0.00021425,2]
[366081200,1750054238064,-468.25613185,0.00021425,2]
[366081202,1750054238074,-300.0,0.00021548,2]
[366081204,1750054238083,-209.94241849,0.00021548,2]
[366081206,1750054238095,-430.91336816,0.00021548,2]
[366081223,1750054238257,-47.43656519,0.00021548,2]
[366081349,1750054240401,-511.70764816,0.00021548,2]
[366081351,1750054240411,-93.68871239,0.00021677,2]
[366081356,1750054240458,-90.52322859,0.00021677,2]
[366081358,1750054240467,-424.54874296,0.00021689,2]
[366081360,1750054240477,-160.0,0.00021689,2]
[366081362,1750054240487,-112.08399071,0.00021689,2]
[366081486,1750054320965,170.740815,0.00013699,2]
[366081488,1750054399215,185.55335693,0.00024998,60]
[366081495,1750054686764,19793.321,0.00024998,60]
[366081545,1750054838981,5000.0,0.0002,2]
[366081550,1750055229145,-300.0,0.00020282,2]
[366081551,1750055229168,-10082.33145164,0.00020283,2]
[366081552,1750055231553,162.127284,0.00019799,2]
[366081553,1750055237450,103.65446248,0.0002,2]
[366081554,1750055237474,4896.34553752,0.0002,2]
[366081555,1750055239127,-1063.06162407,0.00020283,2]
[366081556,1750055254445,3579.24029581,0.0002,2]
[366081557,1750055254475,345.05803017,0.0002,2]
[366081560,1750055376436,170.740815,0.00013699,2]
[366081577,1750055432271,-4362.68812429,0.00020283,2]
[366081579,1750055432283,-157.89514365,0.00020595,2]
[366081580,1750055432293,-300.0,0.00020691,2]
[366081582,1750055432304,-4791.12843078,0.00020692,2]
[366081595,1750055432424,-500.0,0.00020691,2]
[366081597,1750055432434,-500.0,0.00020691,2]
[366081599,1750055432444,-302.53634304,0.00020691,2]
[366081602,1750055432455,-500.0,0.00020691,2]
[366081604,1750055432465,-40915.81858721,0.00020692,2]
[366081606,1750055432477,-185.538,0.00020693,2]
[366081608,1750055432487,-33954.9283119,0.00020694,2]
[366081610,1750055432498,-614.69779355,0.00020869,2]
[366081612,1750055432508,-1246.44,0.00021434,2]
[366081614,1750055432517,-157.8951436,0.00021456,2]
[366081615,1750055432528,-335.0,0.00021595,2]
[366081616,1750055432537,-335.0,0.00021651,2]
[366081617,1750055432547,-160.0,0.000217,2]
[366081618,1750055432557,-213.36025772,0.000217,2]
[366081619,1750055432567,-229.90125484,0.000217,2]
[366081620,1750055432577,-845.4146947,0.000217,2]
[366081621,1750055432587,-160.0,0.000217,2]
[366081622,1750055432596,-160.0,0.000217,2]
[366081623,1750055432606,-12537.89035583,0.000217,2]
[366081624,1750055432615,-424.54874296,0.000217,2]
[366081625,1750055432626,-160.0,0.000217,2]
[366081626,1750055432636,-835.67987521,0.000217,2]
[366081627,1750055432646,-308.82350494,0.00021817,2]
[366081628,1750055432656,-335.0,0.00021867,2]
[366081629,1750055432666,-335.0,0.00021883,2]
[366081630,1750055432675,-335.0,0.00021895,2]
[366081631,1750055432686,-430.48347167,0.000219,6]
[366081632,1750055432699,-460.0,0.00021917,4]
[366081633,1750055432708,-471.89934335,0.00021917,4]
[366081634,1750055432718,-460.0,0.00021917,2]
[366081635,1750055432729,-430.55966655,0.00021917,4]
[366081636,1750055432739,-440.0,0.00021917,4]
[366081637,1750055432748,-467.77263046,0.00021917,4]
[366081638,1750055432758,-464.84856282,0.00021917,4]
[366081639,1750055432769,-479.42377776,0.00021917,4]
[366081640,1750055432779,-468.29925443,0.00021917,4]
[366081641,1750055432789,-504.74988176,0.00021917,4]
[366081642,1750055432798,-460.0,0.00021917,4]
[366081643,1750055432808,-481.89854854,0.00021917,4]
[366081644,1750055432818,-504.31773427,0.00021917,4]
[366081645,1750055432828,-471.50110099,0.00021917,4]
[366081646,1750055432839,-476.32806979,0.00021917,4]
[366081647,1750055432848,-512.85764673,0.00021917,4]
[366081648,1750055432859,-498.28772256,0.00021917,4]
[366081649,1750055432870,-567.40842904,0.00021917,4]
[366081650,1750055432879,-460.0,0.00021917,4]
[366081651,1750055432889,-460.0,0.00021917,4]
[366081652,1750055432903,-519.05044431,0.00021917,4]
[366081653,1750055432914,-460.0,0.00021917,2]
[366081654,1750055432923,-245.80868566,0.00021917,4]
[366081655,1750055432933,-460.0,0.00021917,4]
[366081656,1750055432943,-460.0,0.00021917,4]
[366081657,1750055432952,-460.0,0.00021917,4]
[366081658,1750055432962,-400.0,0.00021917,4]
[366081659,1750055432971,-460.0,0.00021917,4]
[366081660,1750055432983,-460.0,0.00021917,4]
[366081661,1750055432992,-460.0,0.00021917,4]
[366081662,1750055433002,-461.01546838,0.00021917,4]
[366081663,1750055433012,-460.0,0.00021917,4]
[366081664,1750055433023,-460.0,0.00021917,4]
[366081665,1750055433033,-460.0,0.00021917,4]
[366081666,1750055433043,-460.0,0.00021917,4]
[366081667,1750055433053,-460.0,0.00021917,4]
[366081668,1750055433063,-408.91535049,0.00021917,4]
[366081669,1750055433073,-460.0,0.00021917,4]
[366081670,1750055433083,-460.0,0.00021917,4]
[366081671,1750055433093,-460.0,0.00021917,4]
[366081672,1750055433103,-460.0,0.00021917,4]
[366081673,1750055433113,-460.0,0.00021917,4]
[366081674,1750055433123,-460.0,0.00021917,4]
[366081675,1750055433133,-460.0,0.00021917,4]
[366081676,1750055433143,-460.0,0.00021917,4]
[366081677,1750055433152,-428.35126705,0.00021917,4]